Cogmind - Beta 16 @@@ ROGUE MODE // 2026.01.25 @ 17:03:38 Player: Kimbo Result: Destroyed by Y-45 Defender with Beam Rifle Performance ------------- Evolutions (2) 1000 Regions Visited (5) 1000 Robots Destroyed (41) 205 Value Destroyed (962) 962 Prototype IDs (4) 80 Alien Tech Used (0) 0 Bonus (138) 138 TOTAL SCORE: 3385 Bonus ------- Follower Combat Kills 138 Cogmind --------- Core Integrity 0/550 Matter 300/300 Energy 100/100 System Corruption 0% Temperature Cool (9) Movement Core (50) Location -8/Materials Parts ------- > --- POWER (1) -------- (None) > --- PROPULSION (3) --- (None) > --- UTILITY (5) ------ Structural Scanner > --- WEAPON (2) ------- Katana > --- INVENTORY (5) ---- Improved Heat Sink Improved Sensor Array Improved Assault Rifle Rocket Launcher Peak State ------------ > --- POWER ------------ Light Nuclear Core > --- PROPULSION ------- Cesium-ion Thruster Cesium-ion Thruster Cesium-ion Thruster > --- UTILITY ---------- Small Storage Unit Structural Scanner Experimental Sensor Array Signal Interpreter Seismic Detector > --- WEAPON ----------- Improved Assault Rifle > --- INVENTORY -------- Light Nuclear Core Improved Heat Sink Improved Sensor Array Targeting Computer Improved Light Armor Plating Assault Rifle Flak Gun Rocket Launcher [Rating: 30] Favorites ----------- Power Light Nuclear Core Engine Ion Engine Power Core Light Nuclear Core Propulsion Light Treads Treads Light Treads Leg Carbon-fiber Leg Wheel Wheel Hover Unit Backup Propulsion I Flight Unit Cesium-ion Thruster Utility Small Storage Unit Device Structural Scanner Storage Small Storage Unit Processor Signal Interpreter Protection Reactive Plating Weapon Assault Rifle Energy Gun Medium Laser Ballistic Gun Assault Rifle Launcher Grenade Launcher Slashing Weapon Katana Build | -11 -10 -10 -9 -9 -8 ------- Run | Yrd Mat Min Mat Min Mat Slots Evolved 4 | . . . 2 . 2 Power . | . . . . . . Propulsion 1 | . . . . . 1 Utility 3 | . . . 2 . 1 Weapon . | . . . . . . Parts Attached 35 | 7 1 3 7 2 15 Power 5 | 1 . 1 1 . 2 Engine 1 | 1 . . . . . Core 4 | . . 1 1 . 2 Reactor . | . . . . . . Propulsion 12 | 2 . . 3 . 7 Treads 2 | 2 . . . . . Leg 3 | . . . . . 3 Wheel 3 | . . . 3 . . Hover . | . . . . . . Flight 4 | . . . . . 4 Utility 8 | 2 . 1 2 1 2 Device 5 | 1 . 1 2 1 . Storage 1 | 1 . . . . . Processor 1 | . . . . . 1 Hackware . | . . . . . . Protection 1 | . . . . . 1 Artifact . | . . . . . . Weapon 10 | 2 1 1 1 1 4 Energy Gun 2 | 1 . . . . 1 Energy Cannon . | . . . . . . Ballistic Gun 4 | 1 . 1 . . 2 Ballistic Cannon . | . . . . . . Launcher 3 | . 1 . 1 1 . Special Weapon . | . . . . . . Impact Weapon . | . . . . . . Slashing Weapon 1 | . . . . . 1 Piercing Weapon . | . . . . . . Special Melee Weapon . | . . . . . . Unidentified Prototypes 2 | . . . . 1 1 Parts Lost 20 | . . 3 3 . 14 Power 2 | . . . . . 2 Propulsion 7 | . . 1 . . 6 Utility 7 | . . 1 1 . 5 Weapon 4 | . . 1 2 . 1 Highest Loss Streak 9 | . . 1 3 . 9 To Critical Strikes . | . . . . . . Average Backups 7 | 2 7 7 7 6 7 Power 1 | . 1 1 1 2 1 Propulsion . | . 1 . . . . Utility 4 | . 2 5 4 4 3 Weapon 1 | . 1 . . . 1 Tool/Special . | . . . . . . Unused Backups 12 | . 2 2 1 . 7 Power 1 | . . . 1 . . Propulsion 2 | . 1 1 . . . Utility 9 | . 1 1 . . 7 Weapon . | . . . . . . Tool/Special . | . . . . . . Average Slot Usage (%) 91 | . 100 95 93 96 82 Engine 2 | . 14 2 . . . Core 8 | . . 11 11 11 8 Treads 10 | . 28 24 5 . . Wheel 4 | . . . 9 22 1 Flight 7 | . . . . . 21 Device 22 | . 14 13 32 30 24 Storage 10 | . 14 14 11 11 7 Processor 2 | . . . . . 7 Ballistic Gun 13 | . 14 22 13 11 7 Launcher 5 | . 11 5 7 10 . Peak Build Rating 30 | 7 8 11 17 21 30 Average Rating 16 | 5 7 9 15 18 26 On Entrance 9 | . 7 8 9 11 21 Avg Prop Armor Cover (%) 3 | . . . 3 . . Naked Turns . | . . . . . . Heaviest Build 23 | 15 16 16 23 21 21 Greatest Support 45 | 40 40 40 20 20 45 Greatest Overweight (x) 5 | . . . 2 1 5 Average Overweight (x) . | . . . . . . Largest Inventory Capacity 8 | 8 8 8 8 8 8 Average Capacity 7 | 7 8 8 8 8 7 Most Carried 8 | 4 8 8 8 8 8 Average Carried 7 | 2 7 7 7 6 7 Final Capacity 8 | 8 8 8 8 8 5 Final Carried 8 | 4 8 7 7 7 4 Class Distribution -------------------- 85% | Mutant 12% | Scout Dominant Class ---------------- Mutant | -10/Materials Mutant | -10/Mines Mutant | -9/Materials Mutant | -9/Mines Mutant | -8/Materials Resources | -11 -10 -10 -9 -9 -8 ----------- Run | Yrd Mat Min Mat Min Mat Matter Collected 1203 | 276 148 190 186 42 361 Remotely 295 | 103 148 44 . . . Salvage Created 979 | 60 227 156 306 . 230 Parts 59 | 2 13 20 17 . 7 Haulers Intercepted . | . . . . . . Recyclers Shooed 2 | . . 1 . . 1 Parts Field Recycled . | . . . . . . Retrieved Matter . | . . . . . . Parts Self-Destructed . | . . . . . . Prevented . | . . . . . . Parts Restored . | . . . . . . Kills | -11 -10 -10 -9 -9 -8 ------- Run | Yrd Mat Min Mat Min Mat Combat Hostiles Destroyed 28 | . 6 11 8 . 3 Melee 2 | . . . . . 2 Guns 11 | . 3 6 1 . 1 AOE 15 | . 3 5 7 . . Classes Destroyed 10 | 1 3 1 4 . 1 Worker 1 | . . . 1 . . Builder 1 | . . . 1 . . Tunneler 1 | . . 1 . . . Recycler 5 | 1 2 . 1 . 1 Watcher 5 | . 1 . 4 . . Swarmer 13 | . 3 9 1 . . Grunt 12 | . 3 2 5 . 2 Duelist 1 | . . . 1 . . Sentry 1 | . . . 1 . . Specialist 1 | . . . . . 1 Best Kill Streak 5 | 1 5 5 4 . 2 Combat Bots Only 5 | . 3 5 3 . 2 Max Kills in Single Turn 3 | 1 2 3 2 . 1 Gunslinging 1 | . . 1 . . . Exploded 3 | . 1 3 2 . . Melee 1 | . . . . . 1 Uniques/NPCs Destroyed . | . . . . . . Combat | -11 -10 -10 -9 -9 -8 -------- Run | Yrd Mat Min Mat Min Mat Hostile Shots Fired 364 | . 30 54 38 4 238 Missed 148 | . 12 17 16 1 102 Hits 216 | . 18 37 22 3 136 Projectile 216 | . 18 37 22 3 136 Critical Strikes 2 | . . 1 . . 1 Damage Taken 2793 | . 225 358 302 40 1868 Core 679 | . 20 41 43 12 563 Absorbed by Shields . | . . . . . . Ignored by Resistances 70 | . . . . . 70 Regen/Repaired (Parts) 2 | . . . 2 . . Core Remaining (%) 87 | 100 . 75 . 86 . Volleys Fired 96 | 2 17 33 22 . 22 Largest 2 | 2 2 2 2 . 1 Hottest 70 | 70 50 50 56 . 50 Shots Fired 159 | 4 27 65 41 . 22 Gun 131 | 4 17 63 25 . 22 Cannon . | . . . . . . Launcher 28 | . 10 2 16 . . Special . | . . . . . . Kinetic 124 | 2 17 63 25 . 17 Thermal 7 | 2 . . . . 5 Explosive 28 | . 10 2 16 . . Electromagnetic . | . . . . . . Robot Hit Streak 11 | 2 9 9 11 . 6 Robot Miss Streak 10 | 1 3 6 10 . 3 Penetration Max . | . . . . . . Secondary Targets 1 | . . 1 . . . Max Gunslinging Chain 1 | . . 1 . . . Shots Hit Robots 87 | 3 14 33 21 . 16 Core Hits 60 | 1 14 16 23 . 6 Critical Kills . | . . . . . . Critical Parts Destroyed 1 | . . . 1 . . Critical Strikes 2 | . . . 1 . 1 Burn 1 | . . . . . 1 Destroy 1 | . . . 1 . . Melee Attacks 4 | . . . . . 4 Impact . | . . . . . . Slashing 4 | . . . . . 4 Piercing . | . . . . . . Sneak Attacks . | . . . . . . Combat Hostiles . | . . . . . . Follow-up Attacks . | . . . . . . Damage Inflicted 2962 | 38 491 644 1509 . 280 Guns 873 | 38 146 383 135 . 171 Cannons . | . . . . . . Explosions 1980 | . 345 261 1374 . . Melee 103 | . . . . . 103 Ramming 6 | . . . . . 6 Kinetic 823 | 26 146 383 135 . 133 Thermal 50 | 12 . . . . 38 Explosive 1980 | . 345 261 1374 . . Electromagnetic . | . . . . . . Impact . | . . . . . . Slashing 103 | . . . . . 103 Piercing . | . . . . . . Highest Corruption . | . . . . . . Average Corruption . | . . . . . . Corruption Purged . | . . . . . . Corruption Blocked . | . . . . . . Overload Shots . | . . . . . . Overflow Damage 28 | . . . 28 . . Projectiles . | . . . . . . Explosions 28 | . . . 28 . . Melee . | . . . . . . Knockbacks . | . . . . . . Impact . | . . . . . . Kinetic . | . . . . . . Secondary . | . . . . . . Self-Inflicted Damage 89 | . 37 10 42 . . Shots 5 | . 2 1 2 . . Rammed . | . . . . . . Targets Rammed 1 | . . . . . 1 Kicked 1 | . . . . . 1 Crushed . | . . . . . . Highest Temperature 32 | 9 9 27 6 . 32 Average Temperature 10 | 6 4 17 3 . 16 Received Heat Transfer 726 | . 69 114 84 9 450 Siege Activations . | . . . . . . Martial Activations . | . . . . . . Shielding Activations . | . . . . . . Robots Disrupted . | . . . . . . Combat Hostiles . | . . . . . . Robots Corrupted . | . . . . . . Combat Hostiles . | . . . . . . Parts Fried . | . . . . . . Impact Corruptions . | . . . . . . Robots Melted . | . . . . . . Combat Hostiles . | . . . . . . Parts Melted . | . . . . . . Heat Transferred 222 | 37 . . . . 185 Parts Sabotaged . | . . . . . . Parts Stolen . | . . . . . . Parts Stripped . | . . . . . . Power Chain Reactions . | . . . . . . Alert | -11 -10 -10 -9 -9 -8 ------- Run | Yrd Mat Min Mat Min Mat Maximum Alert Level 1 | . 1 . 1 . 1 Low Security (%) 91 | 100 84 100 86 100 90 Level 1 8 | . 15 . 13 . 9 Level 2 . | . . . . . . Level 3 . | . . . . . . Level 4 . | . . . . . . Level 5 . | . . . . . . High Security . | . . . . . . Max Security . | . . . . . . Peak Influence 288 | 5 220 160 288 108 265 Initial 108 | . . 73 41 108 10 Average 74 | . 67 103 75 71 72 Influence Increases 1741 | 5 280 287 473 30 666 Destroy 0b10 Robot/C 640 | . 120 220 160 . 140 Destroy 0b10 Robot/NC 65 | 5 15 5 35 . 5 Destroy Leader 140 | . 32 40 38 . 30 Allied During Kill 18 | . . . . . 18 Successful Hack 20 | . . . 12 . 8 Disable Machine 150 | . 60 . 75 . 15 Destroy Structure 168 | . 53 22 93 . . Partial Spotted 30 | . . . . . 30 Lose Combat Pursuer 510 | . . . 60 30 420 Influence Decreases 1575 | 5 90 369 303 280 528 Entered New Map 372 | . . 117 67 170 18 Time Decay 950 | 5 90 222 206 110 317 Lost Part 200 | . . 30 30 . 140 Lost Ally 53 | . . . . . 53 Squads Dispatched 6 | . 3 . 1 . 2 Investigation 2 | . 1 . . . 1 Extermination . | . . . . . . Reinforcement 4 | . 2 . 1 . 1 Assault . | . . . . . . Garrison . | . . . . . . Intercept . | . . . . . . Searches Triggered . | . . . . . . Construction Impeded . | . . . . . . Haulers Reinforced . | . . . . . . Active Scanning Responses . | . . . . . . Cargo Convoy Interrupts . | . . . . . . Stealth | -11 -10 -10 -9 -9 -8 --------- Run | Yrd Mat Min Mat Min Mat Distress Signals 5 | . . . 2 . 3 Communications Jammed . | . . . . . . Distress Signals . | . . . . . . Times Spotted 89 | . 10 11 22 2 44 Peak Tracking Total 15 | . 3 3 5 2 15 Tactical Retreats 13 | . . . 3 1 9 Traps | -11 -10 -10 -9 -9 -8 ------- Run | Yrd Mat Min Mat Min Mat Traps Triggered 3 | . 1 . . . 2 Indirectly . | . . . . . . Trap Hack Attempts . | . . . . . . Triggered . | . . . . . . Disarmed . | . . . . . . Reprogrammed . | . . . . . . Reused . | . . . . . . Traps Extracted . | . . . . . . Installed . | . . . . . . Triggered . | . . . . . . Machines | -11 -10 -10 -9 -9 -8 ---------- Run | Yrd Mat Min Mat Min Mat Machines Disabled 12 | . 4 . 7 . 1 Max in Single Turn 3 | . 2 . 3 . 1 Machines Repaired . | . . . . . . Machines Dismantled . | . . . . . . Machines Sabotaged . | . . . . . . Overloaded Fab Kills . | . . . . . . Hacking | -11 -10 -10 -9 -9 -8 --------- Run | Yrd Mat Min Mat Min Mat Machines Accessed 10 | . 3 . 2 . 5 Terminals 5 | . 2 . 1 . 2 Fabricators . | . . . . . . Repair Stations 1 | . . . 1 . . Recycling Units 2 | . 1 . . . 1 Scanalyzers 1 | . . . . . 1 Garrison Access 1 | . . . . . 1 Total Hacks 22 | . 8 . 5 . 9 Successful 13 | . 5 . 4 . 4 Failed 9 | . 3 . 1 . 5 Catastrophic . | . . . . . . Database Lockouts . | . . . . . . Manual . | . . . . . . Terminals 10 | . 5 . 1 . 4 Fabricators . | . . . . . . Repair Stations 4 | . . . 4 . . Recycling Units 5 | . 3 . . . 2 Scanalyzers 1 | . . . . . 1 Garrison Access 2 | . . . . . 2 Terminal Hacks 6 | . 3 . 1 . 2 Record 1 | . 1 . . . . Prototype ID Bank 1 | . 1 . . . . Emergency Access Points 1 | . . . 1 . . Locate Traps 1 | . 1 . . . . Recall Reinforcements 1 | . . . . . 1 Hauler Manifests 1 | . . . . . 1 Fabricator Hacks . | . . . . . . Repair Station Hacks 3 | . . . 3 . . Scan Component 1 | . . . 1 . . Repair 1 | . . . 1 . . Refit 1 | . . . 1 . . Recycling Unit Hacks 3 | . 2 . . . 1 Report Inventory 2 | . 1 . . . 1 Retrieve Components 1 | . 1 . . . . Scanalyzer 1 | . . . . . 1 Retrieve Study 1 | . . . . . 1 Garrison Access Hacks . | . . . . . . Unauthorized Hacks . | . . . . . . Terminals . | . . . . . . Fabricators . | . . . . . . Repair Stations . | . . . . . . Recycling Units . | . . . . . . Scanalyzers . | . . . . . . Garrison Access . | . . . . . . Data Cores Recovered . | . . . . . . Used . | . . . . . . Hacking Detections 4 | . 2 . 1 . 1 Full Trace Events . | . . . . . . Feedback Events . | . . . . . . Feedback Blocked . | . . . . . . Robot Schematics Acquired . | . . . . . . Robots Built . | . . . . . . Authchips . | . . . . . . Time . | . . . . . . Total Robot Build Rating . | . . . . . . Part Schematics Acquired . | . . . . . . Parts Built . | . . . . . . Authchips . | . . . . . . Time . | . . . . . . Total Part Build Rating . | . . . . . . Part Studies Acquired 1 | . . . . . 1 Parts Repaired 1 | . . . 1 . . Time 26 | . . . 26 . . Parts Recycled . | . . . . . . Recycled Matter . | . . . . . . Retrieved Matter . | . . . . . . Retrieved Components 1 | . 1 . . . . Parts Scanalyzed . | . . . . . . Part Schematics Acquired . | . . . . . . Parts Damaged . | . . . . . . Bothacking | -11 -10 -10 -9 -9 -8 ------------ Run | Yrd Mat Min Mat Min Mat Used RIF Installer . | . . . . . . Robots Hacked . | . . . . . . Non-combat . | . . . . . . Combat . | . . . . . . Robot Hacks Applied . | . . . . . . Relay Couplers Released . | . . . . . . Fabnet Peak Effective % . | . . . . . . Robots Rewired . | . . . . . . Allies Hacked . | . . . . . . Hacks Repelled . | . . . . . . Allies | -11 -10 -10 -9 -9 -8 -------- Run | Yrd Mat Min Mat Min Mat Total Allies 3 | . . . . 3 . Largest Group 3 | . . . . 3 3 Highest-Rated Group 40 | . . . . 40 40 Highest-Rated Ally 16 | . . . . 16 16 Total Orders . | . . . . . . Ally Attacks 36 | . . . . . 36 Total Damage 362 | . . . . . 362 Kills 4 | . . . . . 4 Allies Corrupted . | . . . . . . Allies Melted . | . . . . . . Intel | -11 -10 -10 -9 -9 -8 ------- Run | Yrd Mat Min Mat Min Mat Active Infowar (turns) 2000 | . . 417 511 236 836 Sensors 913 | . . . . 177 736 Terrain 498 | . . . 498 . . Structural 2000 | . . 417 511 236 836 Seismic 1459 | . . . 511 236 712 Robot Analysis Total . | . . . . . . Derelict Logs Recovered 1 | . . . . 1 . Drone Launches . | . . . . . . Drone Recoveries . | . . . . . . Exploration | -11 -10 -10 -9 -9 -8 ------------- Run | Yrd Mat Min Mat Min Mat Turns Passed 2541 | 114 368 476 511 236 836 Spaces Moved 2287 | 62 198 227 335 218 1247 Core 8 | 6 . . . . 2 Treads 587 | 56 198 227 106 . . Legs 76 | . . . . . 76 Wheels 472 | . . . 229 218 25 Hover . | . . . . . . Flight 1144 | . . . . . 1144 Fastest Speed 29 | 50 160 160 80 80 29 Average Speed 88 | 149 160 160 127 90 51 Slowest Speed 300 | 160 160 160 240 95 300 Overloaded Moves . | . . . . . . Propulsion Burnouts . | . . . . . . Robots Hopped 3 | . . . . . 3 Potential Cave-ins . | . . . . . . Cave-ins Triggered . | . . . . . . Exploration Rate (%) 40 | 5 37 43 42 40 73 Regions Visited 5 Branch Regions 2 Pre-discovered Areas 1 | . . . . 1 . Known Exits Taken . | . . . . . . Unknown Exits Taken 5 | 1 1 1 1 1 . Scrap Searched 2 | . . 1 . 1 . Spaces Dug . | . . . . . . Terrain Destroyed 187 | . 55 22 110 . . Melee . | . . . . . . Projectile . | . . . . . . AOE 187 | . 55 22 110 . . Terrain Rammed . | . . . . . . Walls Destroyed . | . . . . . . Machines Disabled . | . . . . . . Actions | -11 -10 -10 -9 -9 -8 --------- Run | Yrd Mat Min Mat Min Mat Total 2620 | 76 223 276 376 257 1412 Wait 148 | 2 . 4 1 36 105 Move 2276 | 61 197 226 334 217 1241 Hop 3 | . . . . . 3 Pick Up 30 | 4 6 4 5 2 9 Fast Attach 17 | 7 . . 3 . 7 Attach 12 | . . 2 3 2 5 Detach 2 | . . . . . 2 Swap 11 | . 1 3 3 . 4 Drop 20 | . 2 4 5 . 9 Fire 96 | 2 17 33 22 . 22 Melee 4 | . . . . . 4 Ram . | . . . . . . Kick 1 | . . . . . 1 Crush . | . . . . . . Escape Stasis . | . . . . . . Rewire . | . . . . . . Trap . | . . . . . . Miscellaneous . | . . . . . . Route ------- -11/Scrapyard -10/Materials -10/Mines (discovered 2 exits: *Mat x2) -9/Materials -9/Mines -8/Materials (discovered 1 exit: [*Fac]) History --------- Turn | Location | Event 4 | -11/Scrapyard | Discovered new exit (range 13) 115 | -11/Scrapyard | Entered Materials 315 | -10/Materials | Build established: Mutant 446 | -10/Materials | Discovered new exit (range 16) 483 | -10/Materials | Entered Mines 681 | -10/Mines | Discovered new exit (range 9) 763 | -10/Mines | Found a damaged Exp. Sensor Array with a note attached 766 | -10/Mines | Found Prototype Device 849 | -10/Mines | Discovered new exit (range 12) 959 | -10/Mines | Entered Materials 959 | -9/Materials | Evolved 2 slots: Utility x2 1262 | -9/Materials | Repaired Wheel 1448 | -9/Materials | Discovered new exit (range 16) 1470 | -9/Materials | Entered Mines 1477 | -9/Mines | Received a Rocket Launcher from a helpful Derelict 1493 | -9/Mines | Lost 3 parts (1u2w) 1514 | -9/Mines | Learned location of Zion (-7) 1529 | -9/Mines | Identified Exp. Sensor Array 1546 | -9/Mines | Discovered new exit (range 9) 1559 | -9/Mines | Assisted by bots powering up and referring to "LRC-V3" 1706 | -9/Mines | Entered Materials 1706 | -8/Materials | Accompanied by 3 allies 1706 | -8/Materials | Evolved 2 slots: Propulsion x1, Utility x1 2001 | -8/Materials | Lost 3 allies 2380 | -8/Materials | Discovered new exit (range 10) 2393 | -8/Materials | Build established: Scout 2517 | -8/Materials | Lost 9 parts (1p3n4u1w) 2530 | -8/Materials | Core integrity fell below 50% 2538 | -8/Materials | Core integrity fell below 20% 2542 | -8/Materials | Destroyed by Y-45 Defender with Beam Rifle Last Messages --------------- 02427_ Dropped Cesium-ion Thruster+. 02429_ Acquired Carbon-fiber Leg. 02431_ Critical hit (Burn: +37). 02436_ Kicked A-02 Transporter out of the way. 02442_ Exp. Sensor Array destroyed. 02445_ Lgt. Nuclear Core destroyed. 02453_ K-01 Serf cleans the Pressure Siphon. 02456_ Flak Gun destroyed. 02458_ K-01 Serf cleans the Pressure Siphon. 02486_ Carbon-fiber Leg destroyed. 02512_ Acquired Reactive Plating. 02519_ Acquired Katana. 02520_ Carbon-fiber Leg destroyed. 02527_ Lgt. Nuclear Core destroyed. 02532_ X-57 Shotgunner destroyed. 02532_ Acquired 25 matter. 02533_ Reactive Plating destroyed. 02534_ X-57 Shotgunner destroyed. 02539_ G-47 Trooper destroyed. Map ----- +----------------------------------------------------+ | #### # #### ####????????? | | ## # ### ##??????????? | | !## ###+##"####### ##??????????? | | ## ### ####### ##??????????? | | ## ### ##??### ###?????????? | | ## ### ####### ###?????????? | | # ## ###### ##?????????? | | !# ##?????????? | | # ## ###### ##?????????? | | ## ### ##/###########?????????? | | ## ### ## ######?????????? | | ## ?## ## ]= ##?????????????? | | #### ?## ## ]= ##?????????????? | | #### ?## ##] ]= ##?????????????? | | #?## ### ## # ##???????????? | | ####+###+##! # ###??????????? | | #### #####+### ###???? ##???? | | # """ # # ##???? | | # "R # + ###???? | | # """ + """ # ##???? | | # # """ # ##???? | | # * # """ # # ###### | | #= " """ ##?############# | | ####### ##?### g!! ## | | ####### ##??## !!= ## | | ####### ######*!@! ## | | ########## "" ######Y=*!= ## | | # T" % ##Y######## | | T """ + ] "" % *! ###### | | """ # % ##???? | | """ # """ ##???? | | ## ####### "G ##???? | | = """ ## # # """ ##???? | | """ ## # """ + [ ##???? | | """ / # """ # ###??? | | ! ## / """]# ####+####### | | ########## # #### = ! ## | | ########## # #### ## | | + #### ## | | ############# !!#### """ """ ## | | ############# !!#### """ """ ## | | ???????????########### """ """ ## | | ???????????###################### | | | | | | | | | | | | | | | +----------------------------------------------------+ Best States ------------- Heat Dissipation 31 Energy Generation 14 Energy Capacity 250 Matter Stores 300 Matter Capacity 300 Sight Range 16 Robot Scan Range 20 Terrain Scan Range 16 Terrain Scan Density 10 Armor Coverage 150 Resistance: KI 20 Evasion (%) 64 Recoil Reduction 2 Item Schematics ----------------- None Robot Schematics ------------------ None Fabricated ------------ Nothing Repaired ---------- Wheel | 95% | -9/Materials Studied --------- Cesium-ion Thruster | -8/Materials | Hacked Alien Tech Used ----------------- None Achievements -------------- Fitting Room Heavy Suspicion Challenges ------------ None Game ------ Seed BraceBattleCapacitor Manual? 0 Play Time 00:37:55 Cumulative 5.1 hours Start 2026.01.25 @ 16:20:56 End 2026.01.25 @ 17:03:38 Sessions 1 Manual Loads 0 Difficulty Rogue Special Mode None Game No. 9 Rogue 8 Adventurer 1 Explorer 0 Win Type - Total 0 Types 0/0/0/0/0/0/0/0/0/0 Lore% 6 Gallery% 8 Achievement% 8 Wizard Run 0 Options --------- Layout 1 ASCII 0 Keyboard 0 Movement Numpad Keybinds 0 Fullscreen 1 Font 32/SmallcapsGlow Map View 50x35 Zoom Use 0% Tactical HUD 1 Map Filters NONE Filters NONE Steam 1 RUN: acf8ed3a-8061-4b50-9ab2-65058686575a